Cogmind - Beta 13 @@@ ROGUE MODE // 2024.04.05 @ 23:24:50 Player: TheDoorMatt Result: Smashed by cave-in Performance ------------- Evolutions (0) 0 Regions Visited (0) 0 Robots Destroyed (14) 70 Value Destroyed (73) 73 Prototype IDs (0) 0 Alien Tech Used (0) 0 Bonus (0) 0 TOTAL SCORE: 143 Bonus ------- None Cogmind --------- Core Integrity 0/250 Matter 146/300 Energy 250/250 System Corruption 32% Temperature Cool (0) Movement Walking (120) Location -11/Scrapyard Parts ------- > --- POWER (1) -------- Ion Engine > --- PROPULSION (2) --- Aluminum Leg Aluminum Leg > --- UTILITY (2) ------ (None) > --- WEAPON (2) ------- (None) > --- INVENTORY (5) ---- (None) Peak State ------------ > --- POWER ------------ Light Ion Engine > --- PROPULSION ------- Wheel Wheel > --- UTILITY ---------- Improved Terrain Scanner Improved Terrain Scanner > --- WEAPON ----------- Medium Laser Small Laser > --- INVENTORY -------- Ion Engine Aluminum Leg Aluminum Leg Wheel Light Assault Rifle [Rating: 11] Favorites ----------- Power Light Ion Engine Engine Light Ion Engine Propulsion Wheel Leg Aluminum Leg Wheel Wheel Utility Improved Terrain Scanner Device Improved Terrain Scanner Storage Small Storage Unit Weapon Medium Laser Energy Gun Medium Laser Ballistic Gun Light Assault Rifle Special Weapon Mining Laser Build | -11 ------- Run | Yrd Slots Evolved . | . Power . | . Propulsion . | . Utility . | . Weapon . | . Parts Attached 21 | 21 Power 2 | 2 Engine 2 | 2 Core . | . Reactor . | . Propulsion 10 | 10 Treads . | . Leg 2 | 2 Wheel 8 | 8 Hover . | . Flight . | . Utility 5 | 5 Device 4 | 4 Storage 1 | 1 Processor . | . Hackware . | . Protection . | . Artifact . | . Weapon 4 | 4 Energy Gun 2 | 2 Energy Cannon . | . Ballistic Gun 1 | 1 Ballistic Cannon . | . Launcher . | . Special Weapon 1 | 1 Impact Weapon . | . Slashing Weapon . | . Piercing Weapon . | . Special Melee Weapon . | . Unidentified Prototypes . | . Parts Lost 9 | 9 Power 1 | 1 Propulsion 3 | 3 Utility 2 | 2 Weapon 3 | 3 Highest Loss Streak 4 | 4 To Critical Strikes . | . Average Slot Usage (%) . | . Naked Turns . | . Heaviest Build 12 | 12 Greatest Support 32 | 32 Greatest Overweight (x) 1 | 1 Average Overweight (x) . | . Largest Inventory Capacity 8 | 8 Average Capacity 5 | 5 Most Carried 8 | 8 Average Carried 5 | 5 Final Capacity 5 | 5 Final Carried . | . Class Distribution -------------------- None Dominant Class ---------------- None Resources | -11 ----------- Run | Yrd Matter Collected 360 | 360 Remotely . | . Salvage Created 373 | 373 Parts 42 | 42 Haulers Intercepted . | . Recyclers Shooed . | . Parts Field Recycled . | . Retrieved Matter . | . Parts Self-Destructed . | . Prevented . | . Kills | -11 ------- Run | Yrd Combat Hostiles Destroyed . | . Classes Destroyed 3 | 3 Worker 4 | 4 Tunneler 9 | 9 Recycler 1 | 1 Best Kill Streak 4 | 4 Combat Bots Only . | . Max Kills in Single Turn 2 | 2 Gunslinging . | . Exploded . | . Melee . | . Uniques/NPCs Destroyed . | . Combat | -11 -------- Run | Yrd Hostile Shots Fired . | . Missed . | . Damage Taken 955 | 955 Core 263 | 263 Absorbed by Shields . | . Core Remaining (%) . | . Volleys Fired 287 | 287 Largest 2 | 2 Hottest 150 | 150 Shots Fired 336 | 336 Gun 91 | 91 Cannon . | . Launcher . | . Special 245 | 245 Kinetic 11 | 11 Thermal 325 | 325 Explosive . | . Electromagnetic . | . Robot Hit Streak 9 | 9 Robot Miss Streak 4 | 4 Penetration Max . | . Secondary Targets . | . Shots Hit Robots 33 | 33 Core Hits 15 | 15 Critical Kills . | . Critical Parts Destroyed . | . Critical Strikes 1 | 1 Burn 1 | 1 Melee Attacks . | . Impact . | . Slashing . | . Piercing . | . Sneak Attacks . | . Combat Hostiles . | . Follow-up Attacks . | . Damage Inflicted 398 | 398 Guns 398 | 398 Cannons . | . Explosions . | . Melee . | . Ramming . | . Kinetic . | . Thermal 398 | 398 Explosive . | . Electromagnetic . | . Impact . | . Slashing . | . Piercing . | . Highest Corruption 32 | 32 Average Corruption 25 | 25 Corruption Purged . | . Corruption Blocked . | . Effects 60 | 60 Message Errors 20 | 20 Matter Fused 15 | 15 Heat Flow Errors 11 | 11 Energy Discharges 4 | 4 Parts Fused 1 | 1 Data Loss (minor) 6 | 6 Data Loss (major) 2 | 2 Misfires 1 | 1 Overload Shots . | . Overflow Damage . | . Projectiles . | . Explosions . | . Melee . | . Knockbacks . | . Impact . | . Kinetic . | . Secondary . | . Self-Inflicted Damage . | . Shots . | . Rammed . | . Targets Rammed . | . Kicked . | . Crushed . | . Highest Temperature 272 | 272 Average Temperature 48 | 48 Received Heat Transfer . | . Effects 2 | 2 Energy Bleed 1 | 1 Interference 1 | 1 Siege Activations . | . Robots Corrupted . | . Combat Hostiles . | . Parts Fried . | . Impact Corruptions . | . Robots Melted . | . Combat Hostiles . | . Parts Melted 2 | 2 Heat Transferred 1140 | 1140 Parts Sabotaged . | . Parts Stolen . | . Parts Stripped . | . Power Chain Reactions . | . Alert | -11 ------- Run | Yrd Peak Influence 70 | 70 Initial . | . Average 1 | 1 Maximum Alert Level . | . Low Security (%) 100 | 100 Level 1 . | . Level 2 . | . Level 3 . | . Level 4 . | . Level 5 . | . High Security . | . Max Security . | . Squads Dispatched . | . Investigation . | . Extermination . | . Reinforcement . | . Assault . | . Garrison . | . Intercept . | . Searches Triggered . | . Construction Impeded . | . Haulers Reinforced . | . Active Scanning Responses . | . Cargo Convoy Interrupts . | . Stealth | -11 --------- Run | Yrd Distress Signals . | . Communications Jammed . | . Distress Signals . | . Times Spotted . | . Peak Tracking Total . | . Tactical Retreats . | . Traps | -11 ------- Run | Yrd Traps Triggered . | . Indirectly . | . Trap Hack Attempts . | . Triggered . | . Disarmed . | . Reprogrammed . | . Reused . | . Traps Extracted . | . Installed . | . Triggered . | . Machines | -11 ---------- Run | Yrd Machines Disabled . | . Max in Single Turn . | . Machines Repaired . | . Machines Dismantled . | . Machines Sabotaged . | . Overloaded Fab Kills . | . Hacking | -11 --------- Run | Yrd Machines Accessed . | . Terminals . | . Fabricators . | . Repair Stations . | . Recycling Units . | . Scanalyzers . | . Garrison Access . | . Total Hacks . | . Successful . | . Failed . | . Catastrophic . | . Database Lockouts . | . Manual . | . Terminals . | . Fabricators . | . Repair Stations . | . Recycling Units . | . Scanalyzers . | . Garrison Access . | . Terminal Hacks . | . Fabricator Hacks . | . Repair Station Hacks . | . Recycling Unit Hacks . | . Scanalyzer . | . Garrison Access Hacks . | . Unauthorized Hacks . | . Terminals . | . Fabricators . | . Repair Stations . | . Recycling Units . | . Scanalyzers . | . Garrison Access . | . Data Cores Recovered . | . Used . | . Hacking Detections . | . Full Trace Events . | . Feedback Events . | . Feedback Blocked . | . Robot Schematics Acquired . | . Robots Built . | . Authchips . | . Time . | . Total Robot Build Rating . | . Part Schematics Acquired . | . Parts Built . | . Authchips . | . Time . | . Total Part Build Rating . | . Parts Repaired . | . Time . | . Parts Recycled . | . Recycled Matter . | . Retrieved Matter . | . Retrieved Components . | . Parts Scanalyzed . | . Part Schematics Acquired . | . Parts Damaged . | . Bothacking | -11 ------------ Run | Yrd Used RIF Installer . | . Robots Hacked . | . Non-combat . | . Combat . | . Robot Hacks Applied . | . Relay Couplers Released . | . Fabnet Peak Effective % . | . Robots Rewired . | . Allies Hacked . | . Hacks Repelled . | . Allies | -11 -------- Run | Yrd Total Allies . | . Largest Group . | . Highest-Rated Group . | . Highest-Rated Ally . | . Total Orders . | . Ally Attacks . | . Total Damage . | . Kills . | . Allies Corrupted . | . Allies Melted . | . Intel | -11 ------- Run | Yrd Robot Analysis Total . | . Derelict Logs Recovered . | . Drone Launches . | . Drone Recoveries . | . Exploration | -11 ------------- Run | Yrd Turns Passed 11736 | 11736 Spaces Moved 506 | 506 Core 4 | 4 Treads . | . Legs . | . Wheels 502 | 502 Hover . | . Flight . | . Fastest Speed 50 | 50 Average Speed 81 | 81 Slowest Speed 100 | 100 Overloaded Moves . | . Propulsion Burnouts . | . Robots Hopped . | . Cave-ins Triggered 11 | 11 Exploration Rate (%) 11 | 11 Regions Visited . Branch Regions . Pre-discovered Areas . | . Known Exits Taken . | . Unknown Exits Taken . | . Scrap Searched . | . Spaces Dug 62 | 62 Terrain Destroyed 82 | 82 Melee . | . Projectile 82 | 82 AOE . | . Terrain Rammed . | . Walls Destroyed . | . Machines Disabled . | . Actions | -11 --------- Run | Yrd Total 11002 | 11002 Wait 10166 | 10166 Move 506 | 506 Hop . | . Pick Up 13 | 13 Fast Attach 11 | 11 Attach 5 | 5 Detach . | . Swap 5 | 5 Drop 9 | 9 Fire 287 | 287 Melee . | . Ram . | . Kick . | . Crush . | . Escape Stasis . | . Rewire . | . Trap . | . Miscellaneous . | . Route ------- -11/Scrapyard (discovered 1 exit: [*Mat]) History --------- Turn | Location | Event 34 | -11/Scrapyard | Discovered new exit (range 16) 10469 | -11/Scrapyard | Crushed by falling debris 10469 | -11/Scrapyard | System corruption reached 10% 10500 | -11/Scrapyard | Lost 4 parts (1p1n1u1w) 10517 | -11/Scrapyard | Crushed by falling debris 11308 | -11/Scrapyard | Crushed by falling debris 11373 | -11/Scrapyard | Crushed by falling debris 11378 | -11/Scrapyard | Crushed by falling debris 11389 | -11/Scrapyard | Crushed by falling debris 11429 | -11/Scrapyard | Crushed by falling debris 11429 | -11/Scrapyard | System corruption reached 30% 11622 | -11/Scrapyard | Crushed by falling debris 11622 | -11/Scrapyard | Core integrity fell below 50% 11688 | -11/Scrapyard | Crushed by falling debris 11713 | -11/Scrapyard | Crushed by falling debris 11738 | -11/Scrapyard | Crushed by falling debris 11738 | -11/Scrapyard | Smashed by cave-in Last Messages --------------- System corrupted: Component data lost. System corrupted: Matter fused (-10). System corrupted: Heat flow error (+111). System corrupted: Matter fused (-5). System corrupted: Heat flow error (+292). Overheating: Energy bleed (-57). The unstable cave ceiling collapses. Crushed by falling debris. System corrupted: Component data lost. System corrupted: Heat flow error (+226). System corrupted: Component data lost. XIP#